bitfinex/quotes_SOLUSD_20250307
["timestamp","ask_amount","ask_price","bid_price","bid_amount"]
[1741375191958,0.03,149.48,149.45,49.66008747]
[1741375192160,0.03,149.48,149.44,49.66008747]
[1741375192663,0.03,149.48,149.41,49.69308747]
[1741375192664,49.66008747,149.47,149.41,49.69308747]
[1741375192831,49.66008747,149.43,149.41,0.033]
[1741375193033,49.66008747,149.44,149.41,0.033]
[1741375193239,49.66008747,149.43,149.41,0.033]
[1741375193552,49.66008747,149.42,149.41,0.033]
[1741375193751,49.66008747,149.43,149.41,0.033]
[1741375194361,49.66008747,149.42,149.41,0.033]
[1741375194845,55.68328747,149.42,149.41,0.033]
[1741375195054,49.66008747,149.4,149.34,0.033]
[1741375195255,49.66008747,149.39,149.34,0.033]
[1741375195769,49.66008747,149.4,149.34,0.033]
[1741375195972,49.66008747,149.41,149.35,49.66008747]
[1741375196144,49.66008747,149.4,149.34,49.69308747]
[1741375196340,49.66008747,149.38,149.34,0.033]
[1741375196541,49.66008747,149.36,149.34,0.033]
[1741375196746,6.0249,149.38,149.34,0.033]
[1741375196963,55.68458747,149.39,149.34,0.033]
[1741375197155,6.0245,149.39,149.34,0.033]
[1741375197355,49.66008747,149.41,149.35,49.66008747]
[1741375197565,49.66008747,149.42,149.35,49.66008747]
[1741375197747,49.66008747,149.42,149.36,49.66008747]
[1741375198062,49.66008747,149.39,149.34,0.033]
[1741375198271,49.66008747,149.37,149.34,0.033]
[1741375198459,49.66008747,149.36,149.34,0.033]
[1741375198662,49.66008747,149.38,149.34,0.033]
[1741375198859,49.66008747,149.39,149.34,0.033]
[1741375199043,6.024,149.4,149.35,49.66008747]
[1741375199445,55.68408747,149.4,149.34,49.69308747]
[1741375199762,49.66008747,149.39,149.34,0.033]
[1741375200165,55.68378747,149.41,149.35,49.66008747]
[1741375200352,49.66008747,149.4,149.34,49.69308747]
[1741375200545,50.65878368,149.44,149.38,49.66008747]
[1741375200546,6.023,149.43,149.38,49.66008747]
[1741375200741,55.68308747,149.43,149.37,49.66008747]
[1741375201462,49.66008747,149.42,149.36,49.66008747]
[1741375202579,6.0236,149.41,149.36,49.66008747]
[1741375202780,6.0224,149.44,149.37,49.66008747]
[1741375202976,33.60468121,149.62,149.36,6.6951]
[1741375202977,6.0197,149.51,149.36,77.36899108]
[1741375203268,6.0509,149.48,149.43,49.66008747]
[1741375203468,7.04959621,149.48,149.38,8.7872]
[1741375203774,18.64964886,149.47,149.35,15.7356]
[1741375203947,18.64964886,149.45,149.37,3.77254097]
[1741375204161,18.64964886,149.43,149.37,3.77254097]
[1741375204359,6.0232,149.42,149.37,3.77254097]
[1741375204581,48.09565483,149.38,149.37,3.77254097]
[1741375205160,18.64964886,149.37,149.35,4.72039196]
[1741375205394,0.99869621,149.4,149.35,4.72039196]
[1741375205395,48.09565483,149.36,149.35,4.72039196]
[1741375205601,18.64964886,149.35,149.34,0.033]
[1741375206070,48.09565483,149.35,149.34,0.033]
[1741375206386,54.12175483,149.35,149.34,0.033]
[1741375206684,68.87607569,149.35,149.28,0.033]
[1741375206876,18.64964886,149.32,149.28,44.20032683]
[1741375207081,18.64964886,149.33,149.3,44.20032683]
[1741375207282,15.0618,149.39,149.26,13.09482027]
[1741375207283,44.20032683,149.4,149.32,44.20032683]
[1741375207465,18.64964886,149.37,149.32,44.20032683]
[1741375207666,18.64964886,149.36,149.29,8.98]
[1741375208074,18.64964886,149.34,149.29,8.98]
[1741375208275,18.64964886,149.39,149.33,44.20032683]
[1741375208479,18.64964886,149.38,149.33,44.20032683]
[1741375208985,18.64964886,149.38,149.33,50.89682683]
[1741375209186,18.64964886,149.38,149.34,44.20032683]
[1741375209392,62.84997569,149.38,149.32,44.20032683]
[1741375209574,18.64964886,149.38,149.33,44.20032683]
[1741375209966,18.64964886,149.39,149.35,44.20032683]
[1741375210364,62.84997569,149.39,149.33,44.20032683]
[1741375210573,68.87447569,149.39,149.32,44.20032683]
[1741375210790,6.0233,149.42,149.35,44.20032683]
[1741375210965,6.0233,149.42,149.31,67.64132683]
[1741375210966,62.84997569,149.4,149.31,23.441]
[1741375211167,18.64964886,149.38,149.33,44.20032683]
[1741375211796,18.64964886,149.39,149.33,44.20032683]
[1741375211973,18.64964886,149.39,149.34,44.20032683]
[1741375212188,18.64964886,149.4,149.35,44.20032683]
[1741375212774,18.64964886,149.4,149.35,50.89582683]
[1741375213079,18.64964886,149.41,149.35,50.89582683]
[1741375213269,18.64964886,149.41,149.36,44.20032683]
[1741375213988,18.67964886,149.41,149.36,44.20032683]
[1741375214400,0.03,149.41,149.38,44.20032683]
[1741375214598,0.03,149.41,149.4,50.89372683]
[1741375214764,0.03,149.41,149.4,51.89713577]
[1741375214969,0.03,149.41,149.4,6.6934]
[1741375215277,0.03,149.41,149.4,50.89372683]
[1741375216003,0.03,149.41,149.39,50.89402683]
[1741375216178,0.03,149.41,149.37,53.06032683]
[1741375216499,0.03,149.41,149.4,50.89372683]
[1741375217897,0.03,149.41,149.34,6.6961]
[1741375218281,0.03,149.41,149.35,44.20032683]
[1741375218489,18.64964886,149.4,149.35,44.20032683]
[1741375218688,44.20032683,149.39,149.33,4.76701922]
[1741375218886,18.64964886,149.36,149.33,4.76701922]
[1741375219196,62.84997569,149.38,149.33,4.76701922]
[1741375219599,62.84997569,149.38,149.33,0.033]
[1741375219773,62.84997569,149.39,149.33,0.033]
[1741375219974,18.64964886,149.37,149.33,0.033]
[1741375220302,18.64964886,149.37,149.33,44.23332683]
[1741375220481,18.64964886,149.38,149.33,44.23332683]
[1741375220677,0.03,149.41,149.35,44.20032683]
[1741375220984,0.03,149.41,149.38,44.20032683]
[1741375221178,0.03,149.41,149.33,23.4709]
[1741375221179,0.03,149.41,149.39,44.20032683]
[1741375221385,0.03,149.41,149.4,44.20032683]
[1741375223110,0.03,149.41,149.39,44.20032683]
[1741375223288,0.03,149.41,149.38,44.20032683]
[1741375223815,0.03,149.41,149.4,44.20032683]
[1741375225506,0.03,149.41,149.39,44.20032683]
[1741375225888,0.03,149.41,149.4,44.20032683]
[1741375226290,0.03,149.41,149.39,44.20032683]
[1741375226493,0.03,149.41,149.36,44.20032683]
[1741375226701,18.64964886,149.39,149.34,29.43084643]
[1741375227014,18.64964886,149.4,149.37,29.43084643]
[1741375227899,0.03,149.41,149.39,29.43084643]
[1741375228586,18.64964886,149.4,149.37,29.43084643]
[1741375229189,0.03,149.41,149.38,29.43084643]
[1741375229521,0.03,149.41,149.4,29.43084643]
[1741375230001,18.64964886,149.4,149.34,6.6961]
[1741375230210,18.64964886,149.4,149.33,0.033]
[1741375230211,18.64964886,149.4,149.36,29.43084643]
[1741375230507,18.64964886,149.4,149.34,29.43084643]
[1741375230711,0.03,149.41,149.33,29.46384643]
[1741375230881,18.64964886,149.39,149.33,29.46384643]
[1741375231086,48.08049529,149.39,149.33,0.033]
[1741375231299,18.64964886,149.37,149.33,0.033]
[1741375231713,29.43084643,149.39,149.33,0.033]
[1741375231714,18.64964886,149.38,149.34,29.43084643]
[1741375231884,18.64964886,149.39,149.33,29.46384643]
[1741375232404,18.64964886,149.39,149.34,29.43084643]
[1741375232909,6.0249,149.38,149.34,29.43084643]
[1741375234127,6.0249,149.38,149.33,29.46384643]
[1741375234339,48.08049529,149.37,149.33,0.033]
[1741375234929,6.0257,149.36,149.33,0.033]
[1741375235133,18.64964886,149.36,149.33,0.033]
[1741375235439,18.64964886,149.36,149.33,29.46384643]
[1741375235606,18.64964886,149.36,149.33,0.033]
[1741375236100,18.64964886,149.37,149.33,0.033]
[1741375236422,18.64964886,149.39,149.33,0.033]
[1741375236908,29.43084643,149.37,149.33,0.033]
[1741375237108,24.67534886,149.36,149.33,0.033]
[1741375237309,54.10619529,149.36,149.33,0.033]
[1741375238044,6.0254,149.37,149.33,0.033]
[1741375238222,48.08049529,149.34,149.27,3.84127838]
[1741375238537,48.08049529,149.29,149.27,0.033]
[1741375238834,18.64964886,149.3,149.27,0.033]
[1741375239134,18.64964886,149.28,149.27,0.033]
[1741375240424,18.64964886,149.29,149.27,0.033]
[1741375241410,18.64964886,149.31,149.27,0.033]
[1741375241744,18.64964886,149.31,149.27,29.46384643]
[1741375241915,18.64964886,149.32,149.28,29.43084643]
[1741375242112,18.64964886,149.32,149.31,29.43084643]
[1741375242439,6.0249,149.38,149.31,29.43084643]
[1741375242735,6.0249,149.38,149.33,29.43084643]
[1741375242736,18.64964886,149.37,149.33,29.43084643]
[1741375243035,0.03,149.4,149.35,36.12624643]
[1741375243245,0.03,149.4,149.37,29.43084643]
[1741375243446,0.03,149.4,149.36,29.43084643]
[1741375243937,0.03,149.4,149.37,29.43084643]
[1741375244150,0.03,149.4,149.38,29.43084643]
[1741375244310,0.03,149.4,149.37,29.43084643]
[1741375245140,18.64964886,149.39,149.34,29.43084643]
[1741375245940,18.64964886,149.38,149.32,37.89084643]
[1741375246141,48.08049529,149.38,149.32,8.46]
[1741375246441,18.64964886,149.35,149.29,29.43084643]
[1741375246736,18.64964886,149.35,149.3,29.43084643]
[1741375247450,18.64964886,149.33,149.29,29.43084643]
[1741375247824,18.64964886,149.35,149.3,29.43084643]
[1741375248216,18.64964886,149.36,149.31,29.43084643]
[1741375249819,18.64964886,149.37,149.31,36.12814643]
[1741375250235,18.64964886,149.36,149.3,36.12854643]
[1741375250439,18.64964886,149.32,149.27,0.033]
[1741375250618,48.08049529,149.32,149.27,0.033]
[1741375250823,48.08049529,149.28,149.27,0.033]
[1741375251333,18.64964886,149.28,149.27,0.033]
[1741375252141,24.67854886,149.28,149.27,0.033]
[1741375252731,18.64964886,149.28,149.27,0.033]
[1741375253420,18.64964886,149.28,149.27,29.46384643]
[1741375254021,18.64964886,149.28,149.27,0.033]
[1741375254222,24.67854886,149.28,149.27,0.033]
[1741375254419,54.10939529,149.28,149.27,0.033]
[1741375256022,24.67854886,149.28,149.27,0.033]
[1741375256215,18.64964886,149.28,149.27,0.033]
[1741375257719,18.64964886,149.28,149.27,29.46384643]
[1741375258945,18.64964886,149.28,149.27,0.033]
[1741375259739,18.64964886,149.27,149.26,1.6589223]
[1741375260146,18.64964886,149.29,149.26,1.6589223]
[1741375260646,6.0289,149.28,149.26,1.6589223]
[1741375260833,24.67824886,149.29,149.26,1.6589223]
[1741375261547,24.67784886,149.3,149.26,1.6589223]
[1741375261928,18.64964886,149.31,149.27,29.43084643]
[1741375262453,18.64964886,149.32,149.28,29.43084643]
[1741375262664,18.64964886,149.34,149.29,29.43084643]
[1741375263023,18.64964886,149.35,149.3,29.43084643]
[1741375264050,48.08049529,149.35,149.29,29.43084643]
[1741375264252,48.08049529,149.35,149.26,1.6589223]
[1741375264253,29.43084643,149.3,149.26,1.6589223]
[1741375264552,48.08049529,149.27,149.26,1.6589223]
[1741375264953,18.64964886,149.27,149.26,1.6589223]
[1741375266030,48.08049529,149.27,149.26,1.6589223]
[1741375266232,54.10979529,149.27,149.26,1.6589223]
[1741375270160,18.64964886,149.26,149.19,0.033]
[1741375270350,29.43084643,149.23,149.19,0.033]
[1741375270551,18.64964886,149.23,149.19,0.033]
[1741375270930,48.08049529,149.23,149.19,0.033]
[1741375271138,18.64964886,149.21,149.19,0.033]
[1741375271959,18.64964886,149.22,149.19,0.033]
[1741375272160,106.94218815,149.2,149.12,0.033]
[1741375272365,164.69417309,149.21,148.97,10.5126223]
[1741375272366,18.64964886,149.12,148.97,10.5126223]
[1741375272538,18.64964886,149.0,148.97,10.5126223]
[1741375272744,18.64964886,149.0,148.97,1.6259223]
[1741375273141,29.43084643,149.06,148.97,8.3385223]
[1741375273343,18.64964886,149.05,149.0,29.43084643]
[1741375273655,145.08,149.09,148.97,1.6259223]
[1741375273656,29.43084643,149.09,149.03,29.43084643]
[1741375273863,18.64964886,149.14,148.99,8.36]
[1741375274066,18.64964886,149.14,149.07,29.43084643]
[1741375274252,54.11719529,149.09,149.03,29.43084643]
[1741375274444,24.68634886,149.09,149.01,9.7237]
[1741375274648,24.68634886,149.09,149.04,44.3373649]
[1741375274947,18.64964886,149.1,149.05,44.3373649]
[1741375275257,24.68584886,149.1,149.05,44.3373649]
[1741375275563,24.68544886,149.11,149.06,44.3373649]
[1741375275861,18.64964886,149.11,149.02,12.8814]
[1741375276158,6.0354,149.12,149.04,44.3703649]
[1741375276159,18.64964886,149.09,149.04,44.3703649]
[1741375276330,18.64964886,149.09,149.04,0.033]
[1741375276331,18.64964886,149.07,149.04,0.033]
[1741375276835,18.64964886,149.08,149.04,0.033]
[1741375278457,24.68684886,149.08,149.03,44.3373649]
[1741375279061,18.64964886,149.08,149.04,44.3373649]
[1741375279264,18.64964886,149.09,149.05,44.29559424]
[1741375279566,18.64964886,149.1,149.06,44.3373649]
[1741375279872,18.64964886,149.1,149.04,1.00596839]
[1741375280163,18.64964886,149.1,149.05,44.3373649]
[1741375280360,62.98701376,149.1,149.04,44.3373649]
[1741375280668,18.64964886,149.12,149.01,9.7237]
[1741375280965,19.64834507,149.12,149.01,9.7237]
[1741375281553,44.3373649,149.06,149.01,9.7237]
[1741375281860,18.64964886,149.07,149.03,44.3373649]
[1741375282050,18.64964886,149.09,149.04,44.3373649]
[1741375282240,18.64964886,149.09,149.05,44.3373649]
[1741375282434,18.64964886,149.08,149.04,44.3373649]
[1741375282755,18.64964886,149.08,149.05,44.3373649]
[1741375283076,62.98701376,149.1,149.05,44.3373649]
[1741375283948,62.98701376,149.11,149.06,44.3373649]
[1741375284341,18.64964886,149.09,149.05,44.3373649]
[1741375284541,18.64964886,149.09,149.05,51.0461649]
[1741375285060,18.64964886,149.06,149.01,9.7237]
[1741375285263,18.64964886,149.06,149.04,44.3373649]
[1741375285566,18.64964886,149.09,149.04,44.3373649]
[1741375286066,18.64964886,149.08,149.04,44.3373649]
[1741375286363,18.64964886,149.08,149.03,44.3373649]
[1741375286749,44.3373649,149.1,149.04,51.0469649]
[1741375286949,18.64964886,149.09,149.04,51.0469649]
[1741375287155,18.64964886,149.08,149.04,51.0469649]
[1741375287350,44.3373649,149.07,149.01,16.4345]
[1741375287548,18.64964886,149.05,149.0,44.3373649]
[1741375287767,18.64964886,149.05,149.0,51.0485649]
[1741375287940,18.64964886,149.06,149.02,44.3373649]
[1741375288738,18.64964886,149.05,149.0,59.4085649]
[1741375288942,24.68784886,149.05,149.0,59.4085649]
[1741375289160,18.64964886,149.03,148.98,51.0495649]
[1741375289363,18.64964886,148.98,148.97,1.6259223]
[1741375289847,18.64964886,149.02,148.97,52.6759872]
[1741375290042,18.64964886,149.03,148.97,8.3386223]
[1741375290271,18.64964886,149.03,148.98,44.3373649]
[1741375290773,62.98701376,149.02,148.97,1.6259223]
[1741375290985,69.02671376,149.02,148.97,45.9632872]
[1741375291151,69.02671376,149.02,148.97,1.6259223]
[1741375291346,18.64964886,148.98,148.97,1.6259223]
[1741375291573,62.98701376,148.98,148.97,1.6259223]
[1741375292560,18.64964886,148.97,148.94,0.033]
[1741375292763,62.98701376,148.95,148.94,0.033]
[1741375292967,69.02921376,148.95,148.94,0.033]
[1741375293654,18.64964886,148.94,148.88,0.033]
[1741375293859,18.64964886,148.93,148.88,0.033]
[1741375294171,44.3373649,148.92,148.88,0.033]
[1741375294368,62.98701376,148.91,148.88,0.033]
[1741375294569,18.64964886,148.91,148.88,0.033]
[1741375294786,18.64964886,148.94,148.89,29.62919162]
[1741375295078,18.64964886,148.94,148.9,29.62919162]
[1741375295373,48.27884048,148.93,148.88,6.7497]
[1741375295579,18.64964886,148.91,148.88,6.7497]
[1741375295947,18.64964886,148.92,148.88,6.7497]
[1741375296179,18.64964886,148.97,148.91,29.62919162]
[1741375296365,18.64964886,148.95,148.91,29.62919162]
[1741375296694,48.27884048,148.94,148.88,36.37889162]
[1741375296857,18.64964886,148.91,148.88,15.1297]
[1741375297272,18.64964886,148.92,148.88,44.75889162]
[1741375297760,18.64964886,148.92,148.89,29.62919162]
[1741375298284,18.64964886,148.9,148.88,0.033]
[1741375298782,18.64964886,148.89,148.88,0.033]
[1741375299166,18.64964886,148.93,148.88,29.66219162]
[1741375299364,0.99869621,149.04,148.92,29.62919162]
[1741375299569,29.62919162,148.99,148.93,29.62919162]
[1741375299757,10.08482946,149.05,148.98,29.62919162]
[1741375300089,29.62919162,149.04,148.99,29.62919162]
[1741375300387,18.64964886,149.0,148.91,1.00650655]
[1741375300677,18.64964886,149.0,148.95,29.62919162]
[1741375300882,18.64964886,149.02,148.98,29.62919162]
[1741375301184,48.30884048,149.03,148.97,29.62919162]
[1741375301389,18.64964886,149.01,148.96,29.62919162]
[1741375301770,18.64964886,149.02,148.97,29.62919162]
[1741375302178,0.03,149.03,148.97,29.62919162]
[1741375303060,18.64964886,149.02,148.97,29.62919162]
[1741375303259,18.64964886,149.02,148.97,36.34179162]
[1741375303464,29.65919162,149.03,148.99,29.62919162]
[1741375303465,0.03,149.03,148.99,29.62919162]
[1741375303686,0.03,149.03,149.02,29.62919162]
[1741375305282,0.03,149.03,149.02,36.33969162]
[1741375305578,0.03,149.03,149.01,36.33999162]
[1741375307186,0.03,149.03,148.99,36.34089162]
[1741375307378,0.03,149.03,148.98,6.7121]
[1741375307685,18.67964886,149.03,148.98,36.34129162]
[1741375307874,18.67964886,149.03,148.99,29.62919162]
[1741375308187,0.03,149.03,148.98,36.34129162]
[1741375308566,0.03,149.03,148.99,29.62919162]
[1741375308765,0.03,149.03,148.98,6.7121]
[1741375308766,0.03,149.03,149.0,29.62919162]
[1741375309195,0.03,149.03,149.01,29.62919162]
[1741375309396,0.03,149.03,149.0,29.62919162]
[1741375309607,0.03,149.03,148.99,29.62919162]
[1741375309898,0.03,149.03,148.97,29.62919162]
[1741375310073,0.03,149.03,148.98,29.62919162]
[1741375310473,0.03,149.03,148.98,36.34119162]
[1741375310670,0.03,149.03,149.0,29.62919162]
[1741375310895,0.03,149.03,149.01,29.62919162]
[1741375311088,0.03,149.03,149.02,29.62919162]
[1741375311694,0.03,149.03,149.02,37.98919162]
[1741375312688,0.03,149.03,149.02,44.69969162]
[1741375315589,0.03,149.03,149.02,45.70574776]
[1741375316512,18.67964886,149.12,149.02,174.11113938]
[1741375316803,0.03,149.12,149.09,29.62919162]
[1741375317122,18.64964886,149.09,149.02,90.36]
[1741375317713,18.64964886,149.08,149.03,29.62919162]
[1741375318086,18.64964886,149.05,149.0,29.62919162]
[1741375318406,18.64964886,149.09,149.02,29.62919162]
[1741375318609,29.62919162,149.07,149.01,29.62919162]
[1741375318812,18.64964886,149.06,149.02,29.62919162]
[1741375319006,18.64964886,149.06,149.03,29.62919162]
[1741375319206,48.27884048,149.08,149.02,29.62919162]
[1741375319384,48.27884048,149.08,148.99,6.7118]
[1741375319385,18.64964886,149.08,149.03,29.62919162]
[1741375319591,29.62919162,149.11,149.05,29.62919162]
[1741375319792,48.27884048,149.1,149.04,29.62919162]
[1741375320097,18.64964886,149.11,149.06,29.62919162]
[1741375320423,0.03,149.12,149.09,29.62919162]
[1741375320807,0.03,149.12,149.08,29.62919162]
[1741375321010,0.03,149.12,149.0,4.85058272]
[1741375321209,18.64964886,149.09,149.04,29.62919162]
[1741375321399,18.64964886,149.08,149.03,29.62919162]
[1741375321720,18.64964886,149.09,149.04,29.62919162]
[1741375321912,18.64964886,149.09,149.0,3.8447646]
[1741375322118,18.64964886,149.0,148.97,0.033]
[1741375322486,18.64964886,148.98,148.97,0.033]
[1741375323088,48.27884048,148.98,148.97,0.033]
[1741375323298,49.27753669,148.98,148.97,0.0001]
[1741375324337,49.27753669,148.98,148.88,0.033]
[1741375324516,29.62919162,148.92,148.88,0.033]
[1741375324715,48.27884048,148.91,148.88,0.033]
[1741375324914,29.62919162,148.92,148.88,0.033]
[1741375325220,18.64964886,148.91,148.88,0.033]
[1741375325418,29.62919162,148.96,148.9,29.62919162]
[1741375325616,18.64964886,148.95,148.9,29.62919162]
[1741375326041,18.64964886,148.96,148.91,29.62919162]
[1741375326637,48.07402108,149.02,148.95,29.62919162]
[1741375326810,10.08482946,149.02,148.99,29.62919162]
[1741375327209,18.64964886,149.01,148.94,7.72061345]
[1741375327411,39.71402108,149.04,148.98,29.62919162]
[1741375327722,18.64964886,149.03,148.98,29.62919162]
[1741375328617,63.02772574,149.0,148.93,44.37807688]
[1741375328827,63.02772574,148.98,148.91,8.36]
[1741375329022,63.02772574,148.98,148.92,44.37807688]
[1741375329424,18.64964886,149.02,148.92,6.7149]
[1741375329935,18.64964886,149.06,148.93,1.00666059]
[1741375330130,18.64964886,149.07,148.93,1.00666059]
[1741375330326,18.64964886,149.07,148.94,9.1943]
[1741375330539,18.64964886,149.06,149.01,44.37807688]
[1741375330917,18.64964886,149.01,148.91,6.7154]
[1741375331119,18.64964886,148.98,148.93,44.37807688]
[1741375331530,18.64964886,148.99,148.94,44.37807688]
[1741375331839,18.64964886,148.99,148.91,44.37807688]
[1741375332041,18.64964886,149.01,148.93,44.37807688]
[1741375332212,18.64964886,148.97,148.92,44.37807688]
[1741375332418,63.02772574,148.97,148.91,44.37807688]
[1741375333137,63.02772574,148.97,148.9,52.73807688]
[1741375333518,18.64964886,148.97,148.91,44.37807688]
[1741375334022,18.64964886,148.96,148.92,44.37807688]
[1741375334336,18.64964886,148.97,148.91,44.37807688]
[1741375334638,18.64964886,148.91,148.88,0.033]
[1741375334843,63.02772574,148.91,148.88,0.033]
[1741375335042,18.64964886,148.91,148.88,0.033]
[1741375335618,18.64964886,148.95,148.88,44.41107688]
[1741375335947,18.64964886,148.96,148.91,44.37807688]
[1741375336141,44.37807688,148.93,148.88,0.033]
[1741375336331,44.37807688,148.9,148.88,0.033]
[1741375337236,63.02772574,148.89,148.88,0.033]
[1741375337622,63.02772574,148.89,148.79,12.8793]
[1741375337623,18.64964886,148.83,148.79,0.033]
[1741375337830,18.64964886,148.79,148.72,44.37807688]
[1741375338022,18.64964886,148.75,148.7,44.37807688]
[1741375338223,18.64964886,148.77,148.69,6.7253]
[1741375338420,18.64964886,148.83,148.71,6.724]
[1741375338817,18.64964886,148.83,148.69,313.00836125]
[1741375339043,18.64964886,148.83,148.73,6.7564]
[1741375339341,0.99869621,148.83,148.73,0.033]
[1741375339546,18.64964886,148.79,148.74,44.37807688]
[1741375339733,18.64964886,148.79,148.73,0.033]
[1741375339734,18.64964886,148.79,148.75,44.37807688]
[1741375339932,18.64964886,148.79,148.73,0.033]
[1741375339933,18.64964886,148.81,148.76,44.37807688]
[1741375340115,18.64964886,148.81,148.77,44.37807688]
[1741375340320,18.64964886,148.82,148.79,44.37807688]
[1741375340546,44.37807688,148.86,148.8,44.37807688]
[1741375340752,18.64964886,148.85,148.83,44.37807688]
[1741375340921,10.08482946,148.91,148.84,51.09627688]
[1741375341123,10.08482946,148.91,148.87,44.37807688]
[1741375341530,10.08482946,148.91,148.86,44.37807688]
[1741375341749,10.08482946,148.91,148.87,44.37807688]
[1741375342224,10.08482946,148.91,148.89,44.37807688]
[1741375342429,10.08482946,148.91,148.9,44.37807688]
[1741375343351,18.64964886,148.92,148.9,44.37807688]
[1741375343550,18.64964886,148.97,148.91,44.37807688]
[1741375343748,63.02772574,148.97,148.91,44.37807688]
[1741375344050,18.64964886,148.97,148.91,44.37807688]
[1741375344225,18.64964886,148.98,148.92,44.37807688]
[1741375344564,18.64964886,148.98,148.88,15.0767]
[1741375344565,18.64964886,148.95,148.9,44.37807688]
[1741375344925,18.64964886,148.91,148.85,44.37807688]
[1741375345125,18.64964886,148.9,148.83,1.00741828]
[1741375345352,63.02772574,148.92,148.86,44.37807688]
[1741375345547,18.64964886,148.92,148.87,44.37807688]
[1741375345753,18.64964886,148.9,148.82,8.36]
[1741375346060,18.64964886,148.88,148.83,44.37807688]
[1741375346653,63.02772574,148.85,148.77,8.36]
[1741375346836,18.64964886,148.84,148.79,44.37807688]
[1741375347159,44.37807688,148.85,148.77,8.36]
[1741375347160,18.64964886,148.85,148.8,44.37807688]
[1741375347453,18.64964886,148.85,148.81,44.37807688]
[1741375347769,18.64964886,148.87,148.83,44.37807688]
[1741375347927,18.64964886,148.85,148.8,44.37807688]
[1741375348128,18.64964886,148.85,148.79,44.37807688]
[1741375348359,18.64964886,148.85,148.8,44.37807688]
[1741375348745,63.02772574,148.86,148.8,44.37807688]
[1741375349144,18.64964886,148.84,148.79,44.37807688]
[1741375349742,18.64964886,148.86,148.8,44.37807688]
[1741375349947,18.64964886,148.86,148.81,44.37807688]
[1741375350151,63.02772574,148.86,148.8,44.37807688]
[1741375350474,63.02772574,148.82,148.77,0.033]
[1741375350868,63.02772574,148.78,148.77,0.033]
[1741375351037,18.64964886,148.77,148.73,0.033]
[1741375351231,63.02772574,148.74,148.73,0.033]
[1741375351637,18.64964886,148.74,148.73,0.033]
[1741375352064,16.8003,148.81,148.73,0.033]
[1741375352237,18.64964886,148.77,148.73,0.033]
[1741375352442,6.72,148.81,148.76,44.37807688]
[1741375352646,18.64964886,148.81,148.77,44.37807688]
[1741375352856,18.64964886,148.81,148.73,1.04096578]
[1741375352857,18.64964886,148.81,148.73,0.033]
[1741375353046,18.64964886,148.79,148.74,44.37807688]
[1741375353360,18.64964886,148.82,148.76,44.37807688]
[1741375353539,18.64964886,148.82,148.78,44.37807688]
[1741375353733,0.03,148.91,148.81,88.75615376]
[1741375353935,0.03,148.91,148.86,44.37807688]
[1741375354358,44.37807688,148.88,148.85,8.36]
[1741375354556,44.37807688,148.9,148.85,8.36]
[1741375354741,18.64964886,148.89,148.85,8.36]
[1741375354958,44.37807688,148.9,148.85,8.36]
[1741375355465,44.37807688,148.89,148.85,8.36]
[1741375355670,44.37807688,148.88,148.85,8.36]
[1741375355871,44.37807688,148.86,148.78,45.38538446]
[1741375356050,44.37807688,148.84,148.78,6.7212]
[1741375356569,44.37807688,148.81,148.77,9.4637]
[1741375356875,44.37807688,148.81,148.76,15.0821]
[1741375357848,44.37807688,148.82,148.76,15.0821]
[1741375358239,44.37807688,148.81,148.76,8.36]
[1741375358470,44.37807688,148.79,148.74,6.723]
[1741375358668,44.37807688,148.81,148.75,44.37807688]
[1741375358860,44.37807688,148.82,148.75,44.37807688]
[1741375359260,44.37807688,148.81,148.75,44.37807688]
[1741375359573,44.37807688,148.81,148.74,51.10107688]
[1741375360161,18.64964886,148.81,148.75,44.37807688]
[1741375360362,44.37807688,148.82,148.75,44.37807688]
[1741375360771,44.37807688,148.8,148.74,6.723]
[1741375360965,44.37807688,148.81,148.74,51.10107688]
[1741375361170,44.37807688,148.77,148.75,0.033]
[1741375361469,18.64964886,148.79,148.75,0.033]
[1741375361470,63.02772574,148.76,148.75,0.033]
[1741375362064,69.74992574,148.76,148.75,0.033]
[1741375362375,114.12800262,148.76,148.75,0.033]
[1741375362558,115.12669883,148.76,148.75,0.033]
[1741375362877,69.74992574,148.76,148.75,0.033]
[1741375363576,63.02772574,148.76,148.75,0.033]
[1741375364075,145.46,148.8,148.75,0.033]
[1741375364256,63.02772574,148.79,148.75,0.033]
[1741375364453,44.37807688,148.78,148.75,0.033]